bitfinex/quotes_ETHUSD_20240603
["timestamp","ask_amount","ask_price","bid_price","bid_amount"]
[1717405577896,1.09343764,3821.9,3821.8,0.06535086]
[1717405578194,1.09343764,3821.9,3821.8,0.61915337]
[1717405582194,1.36731508,3822.0,3821.8,0.06535086]
[1717405582698,1.09174807,3821.9,3821.7,2.61663]
[1717405583690,0.81882252,3821.8,3821.7,2.61663]
[1717405587179,1.09174807,3821.8,3821.7,2.61663]
[1717405588767,1.36526065,3821.9,3821.7,2.61663]
[1717405588978,1.36526065,3821.9,3821.8,0.493033]
[1717405589179,1.36526065,3821.9,3821.7,2.61663]
[1717405589478,1.36526065,3821.8,3821.7,2.61663]
[1717405590008,4.92642203,3822.1,3821.7,2.61663]
[1717405590218,2.20394675,3822.0,3821.7,2.61663]
[1717405590509,1.63831278,3822.0,3821.7,2.61663]
[1717405591056,3.20780968,3822.1,3821.7,2.61663]
[1717405591262,2.20394057,3822.0,3821.7,2.61663]
[1717405591461,1.63831278,3822.0,3821.7,2.61663]
[1717405591662,3.77344789,3822.0,3821.7,2.61663]
[1717405591909,0.56563821,3821.9,3821.7,2.61663]
[1717405592197,2.20395099,3821.9,3821.8,0.06547234]
[1717405592406,3.77344789,3821.9,3821.8,0.06547234]
[1717405592614,3.77344789,3821.9,3821.7,2.61663]
[1717405592782,3.20780968,3821.9,3821.7,2.61663]
[1717405593119,3.20780968,3821.9,3821.3,2.61685]
[1717405593412,1.36712809,3821.4,3821.3,2.61685]
[1717405593803,1.36703577,3821.4,3821.3,2.61685]
[1717405593976,1.36703577,3821.4,3821.3,3.121365]
[1717405594166,3.35905527,3821.7,3821.3,3.121365]
[1717405594371,4.92845388,3821.7,3821.3,3.121365]
[1717405594593,1.64044292,3821.7,3821.3,3.121365]
[1717405594799,3.35905527,3821.7,3821.3,3.121365]
[1717405595010,1.3673473,3821.4,3821.3,3.121365]
[1717405595310,3.35905527,3821.6,3821.3,3.121365]
[1717405596615,1.71861235,3821.6,3821.3,3.121365]
[1717405597418,1.56941017,3821.4,3821.3,3.121365]
[1717405597714,2.13506841,3821.4,3821.3,3.121365]
[1717405599223,3.50284292,3821.4,3821.3,3.121365]
[1717405599575,2.13506841,3821.4,3821.3,3.121365]
[1717405599771,0.56565824,3821.4,3821.3,3.121365]
[1717405600107,2.13500637,3821.4,3821.3,3.121365]
[1717405600290,0.56565824,3821.4,3821.3,3.121365]
[1717405600498,3.50288437,3821.4,3821.3,3.121365]
[1717405600909,0.56565824,3821.4,3821.3,5.497965]
[1717405601109,1.09431529,3821.4,3821.3,5.497965]
[1717405601373,0.82072759,3821.4,3821.3,5.497965]
[1717405601573,1.09431529,3821.5,3821.3,5.497965]
[1717405601774,1.09431529,3821.5,3821.4,0.5497965]
[1717405602020,1.09431529,3821.5,3821.4,1.3307965]
[1717405603205,1.36778615,3821.6,3821.4,0.5497965]
[1717405603420,1.56943998,3821.6,3821.5,2.61677]
[1717405603595,0.56560893,3821.6,3821.5,2.61677]
[1717405603778,2.26172247,3821.6,3821.5,2.61677]
[1717405605211,3.90216539,3821.6,3821.5,2.61677]
[1717405606413,2.26172247,3821.6,3821.5,2.61677]
[1717405607365,2.26172247,3821.6,3821.5,2.6824639]
[1717405612106,4.17557255,3821.6,3821.5,0.0656939]
[1717405612369,5.85707255,3821.6,3821.1,2.61702]
[1717405612509,1.64440047,3821.2,3821.1,2.61702]
[1717405612843,2.26172247,3821.2,3821.1,2.61702]
[1717405613343,4.18018969,3821.2,3821.1,2.61702]
[1717405614534,4.18015818,3821.2,3821.1,2.61702]
[1717405621373,4.18003332,3821.2,3821.1,2.61702]
[1717405621744,4.18003332,3821.2,3820.8,2.61725]
[1717405621971,1.56970665,3820.9,3820.8,2.61725]
[1717405622128,3.8315554,3820.9,3820.8,2.61725]
[1717405622466,3.8315554,3820.9,3820.8,2.68342362]
[1717405622665,2.26184875,3820.9,3820.8,2.68342362]
[1717405623367,3.83151606,3820.9,3820.8,2.68342362]
[1717405624069,5.47517492,3820.9,3820.8,2.68342362]
[1717405625343,5.47517492,3820.9,3820.8,5.76003598]
[1717405625344,3.90546508,3820.9,3820.8,5.76003598]
[1717405625673,3.21328364,3821.1,3820.8,5.76003598]
[1717405625828,3.21328364,3821.2,3821.1,2.61704]
[1717405626026,3.92409453,3821.2,3821.1,3.39804]
[1717405626225,3.92409453,3821.2,3821.1,3.46417313]
[1717405627141,2.35442722,3821.2,3821.1,3.46417313]
[1717405627327,2.35442722,3821.2,3821.1,3.39804]
[1717405627528,2.35442722,3821.2,3821.1,3.46417313]
[1717405629856,2.35442722,3821.2,3821.1,2.68317313]
[1717405630250,2.35442722,3821.2,3821.1,2.21336613]
[1717405632281,4.27216057,3821.2,3821.1,2.21336613]
[1717405633158,4.27216057,3821.2,3821.1,0.06613313]
[1717405633560,4.27216057,3821.2,3820.8,2.61724]
[1717405633892,4.27272247,3821.1,3820.8,2.61724]
[1717405634083,2.35442722,3821.0,3820.8,2.61724]
[1717405634289,2.35442722,3820.9,3820.8,2.61724]
[1717405634660,2.35450398,3820.9,3820.8,2.61724]
[1717405636052,2.35450836,3820.9,3820.8,2.61724]
[1717405637012,2.35450836,3820.9,3820.4,2.61747]
[1717405637293,4.27280361,3820.8,3820.4,2.61747]
[1717405637616,1.6815,3821.0,3820.4,2.61747]
[1717405637617,4.27280361,3820.7,3820.5,0.06329094]
[1717405637893,2.35450836,3820.6,3820.4,2.61747]
[1717405638184,2.35450836,3820.5,3820.4,2.61747]
[1717405639059,2.35450836,3820.5,3820.0,2.61774]
[1717405639262,1.56967779,3820.1,3820.0,3.39874]
[1717405639475,3.92418615,3820.1,3820.0,3.39874]
[1717405639768,5.56775938,3820.1,3820.0,3.39874]
[1717405639950,5.56775938,3820.1,3820.0,2.61774]
[1717405640696,5.56775938,3820.1,3819.6,2.61801]
[1717405640876,2.35450836,3820.0,3819.7,0.781]
[1717405641081,0.56589371,3819.9,3819.7,0.781]
[1717405641302,1.56967779,3820.0,3819.6,2.61801]
[1717405641597,1.56973509,3820.0,3819.8,0.781]
[1717405641746,0.56590345,3819.9,3819.8,0.781]
[1717405642309,1.56973509,3820.0,3819.8,0.781]
[1717405642505,2.37389998,3819.9,3819.6,2.61801]
[1717405642679,1.80799276,3819.8,3819.6,3.39901]
[1717405642877,0.56590722,3819.7,3819.6,3.39901]
[1717405643065,2.37409099,3819.7,3819.6,3.39901]
[1717405643270,1.56973509,3819.8,3819.6,3.39901]
[1717405643471,3.35745714,3819.8,3819.6,3.39901]
[1717405643877,3.35745714,3819.8,3819.6,2.61801]
[1717405644074,3.35745714,3819.8,3819.6,3.39901]
[1717405644292,1.78772205,3819.8,3819.6,3.39901]
[1717405644811,3.35745714,3819.8,3819.6,3.39901]
[1717405644961,1.78772205,3819.8,3819.6,2.61801]
[1717405645160,3.21226137,3819.9,3819.6,3.39901]
[1717405645755,0.56591788,3819.8,3819.6,3.39901]
[1717405646152,3.21226137,3820.0,3819.6,2.61801]
[1717405646357,0.56591891,3819.9,3819.6,2.61801]
[1717405646557,0.56591891,3819.9,3819.7,0.781]
[1717405647400,0.56591891,3819.9,3819.8,2.61793]
[1717405647781,3.21226137,3820.1,3819.8,2.61793]
[1717405647984,3.21226137,3820.1,3819.8,3.39893]
[1717405648217,0.56590315,3820.0,3819.8,3.39893]
[1717405648501,2.20842943,3820.0,3819.8,3.39893]
[1717405648698,3.2123027,3820.1,3819.8,3.39893]
[1717405648862,0.56590214,3820.0,3819.8,3.39893]
[1717405649398,1.78772205,3820.2,3819.8,3.39893]
[1717405649560,5.56441493,3820.1,3819.8,3.39893]
[1717405649762,3.21080023,3820.1,3819.8,3.39893]
[1717405650577,1.640936,3820.1,3819.8,3.39893]
[1717405651096,3.77669141,3820.1,3819.8,3.39893]
[1717405651302,3.21080023,3820.1,3819.8,3.39893]
[1717405651597,4.99852228,3820.1,3819.8,3.39893]
[1717405651774,3.21080023,3820.1,3819.8,3.39893]
[1717405652196,1.640936,3820.1,3819.8,3.39893]
[1717405652398,1.640936,3820.1,3820.0,2.6178]
[1717405652571,2.20682322,3820.1,3820.0,2.6178]
[1717405652972,2.20682322,3820.1,3820.0,3.46293644]
[1717405653314,3.77709186,3820.1,3820.0,3.46293644]
[1717405653459,2.20690075,3820.1,3820.0,3.46293644]
[1717405653660,5.56481391,3820.1,3820.0,3.46293644]
[1717405653860,3.77709186,3820.1,3820.0,3.46293644]
[1717405654061,2.20690075,3820.1,3820.0,3.46293644]
[1717405654415,2.20690075,3820.1,3820.0,2.68193644]
[1717405654612,3.77724134,3820.1,3820.0,2.68193644]
[1717405655279,5.56496339,3820.1,3820.0,2.68193644]
[1717405655478,2.20689946,3820.1,3820.0,2.68193644]
[1717405656198,3.77724134,3820.1,3820.0,2.68193644]
[1717405656409,5.56496339,3820.1,3820.0,2.68193644]
[1717405656586,3.77724134,3820.1,3820.0,2.68193644]
[1717405656987,5.56496339,3820.1,3820.0,2.68193644]
[1717405657190,3.77724134,3820.1,3820.0,2.68193644]
[1717405657578,5.56496339,3820.1,3820.0,2.68193644]
[1717405657776,3.77724134,3820.1,3820.0,2.68193644]
[1717405658301,5.56496339,3820.1,3820.0,2.68193644]
[1717405658508,3.77724134,3820.1,3820.0,2.68193644]
[1717405658675,2.35360798,3820.1,3820.0,2.68193644]
[1717405659711,0.56588593,3820.1,3820.0,2.68193644]
[1717405660082,2.35360798,3820.1,3820.0,2.68193644]
[1717405660281,0.56588593,3820.1,3820.0,2.68193644]
[1717405660711,2.35360798,3820.1,3820.0,2.68193644]
[1717405662106,2.35363162,3820.1,3820.0,2.68193644]
[1717405663417,0.56590627,3820.1,3820.0,2.68193644]
[1717405663581,2.35362832,3820.1,3820.0,2.68193644]
[1717405668315,2.35362832,3820.1,3820.0,0.06413644]
[1717405668688,2.35362832,3820.1,3819.6,3.39904]
[1717405668910,1.91613708,3820.2,3820.0,0.06011496]
[1717405669232,1.6815,3820.4,3819.6,3.39904]
[1717405669233,2.35812047,3820.1,3819.6,3.39904]
[1717405669542,1.64246126,3819.9,3819.6,3.39904]
[1717405669735,0.56593923,3819.8,3819.6,3.39904]
[1717405670034,0.56593923,3819.7,3819.6,2.61804]
[1717405670234,0.56592964,3819.7,3819.6,3.39904]
[1717405671039,0.56592964,3819.7,3819.6,2.61804]
[1717405671342,0.56592964,3819.7,3819.6,3.39904]
[1717405671521,0.56592964,3819.7,3819.6,2.61804]
[1717405672034,2.35811088,3819.7,3819.6,3.39904]
[1717405673144,4.00061551,3819.7,3819.6,3.39904]
[1717405674017,4.00061551,3819.7,3819.6,2.61804]
[1717405674653,2.35811088,3819.7,3819.6,2.61804]
[1717405675451,2.35811088,3819.7,3819.2,2.6974853]
[1717405675654,4.88122669,3820.3,3819.2,2.6974853]
[1717405675655,1.57120985,3819.3,3819.2,2.6974853]
[1717405675813,0.56595756,3819.3,3819.2,3.4784853]
[1717405676009,2.35494876,3819.3,3819.2,3.4784853]
[1717405677246,3.99881025,3819.3,3819.2,3.4784853]
[1717405679253,2.35494876,3819.3,3819.2,3.4784853]
[1717405679845,2.35494876,3819.3,3819.2,2.6974853]
[1717405680045,2.35494876,3819.3,3819.2,3.4784853]
[1717405680220,2.35494876,3819.3,3819.2,2.6974853]
[1717405682256,2.35494876,3819.3,3819.2,2.75805491]
[1717405683265,4.27278717,3819.3,3819.2,2.75805491]
[1717405686364,4.27278717,3819.3,3819.2,3.53905491]
[1717405687225,2.35494876,3819.3,3819.2,3.53905491]
[1717405687663,4.27597867,3819.3,3819.2,3.53905491]
[1717405688239,2.35494876,3819.3,3819.2,3.53905491]
[1717405689371,4.27600818,3819.3,3819.2,2.75805491]
[1717405689673,2.35494876,3819.3,3819.2,2.75805491]
[1717405690229,2.35501456,3819.3,3819.2,2.75805491]
[1717405691767,4.27656695,3819.3,3819.2,2.75805491]
[1717405692169,2.35501456,3819.3,3819.2,2.75805491]
[1717405692330,2.35501456,3819.3,3819.2,0.13975491]
[1717405695583,2.35504881,3819.3,3819.2,0.13975491]
[1717405696754,4.62413828,3819.3,3819.2,0.13975491]
[1717405697491,2.35506467,3819.3,3819.2,0.13975491]
[1717405700417,2.61842,3819.1,3818.6,0.005]
[1717405700554,4.88424492,3819.0,3818.6,0.005]
[1717405700759,4.62254492,3818.9,3818.7,0.05711845]
[1717405701019,2.35506467,3818.8,3818.7,0.05711845]
[1717405701870,3.92669239,3818.8,3818.7,3.14991845]
[1717405702084,5.5717139,3818.8,3818.7,2.95430591]
[1717405702282,3.43401271,3818.8,3818.7,3.73530591]
[1717405702494,3.43401271,3818.8,3818.7,2.95430591]
[1717405702721,2.35505204,3818.8,3818.7,3.73530591]
[1717405703223,3.92667976,3818.8,3818.7,3.73530591]
[1717405703679,2.35505204,3818.8,3818.7,3.73530591]
[1717405704206,3.99998602,3818.8,3818.7,3.73530591]
[1717405704691,2.35505204,3818.8,3818.7,3.73530591]
[1717405705303,3.99994715,3818.8,3818.7,3.73530591]
[1717405705813,3.92667976,3818.8,3818.7,3.73530591]
[1717405706488,3.92667976,3818.8,3818.7,2.31421845]
[1717405706800,2.35505204,3818.8,3818.7,3.09521845]
[1717405707172,3.92675473,3818.8,3818.7,3.09521845]
[1717405708327,2.35505204,3818.8,3818.7,2.31421845]
[1717405708612,2.35505204,3818.8,3818.7,0.05711845]
[1717405710211,2.3550803,3818.8,3818.7,0.05711845]
[1717405713829,4.27373161,3818.8,3818.7,0.05711845]
[1717405714217,2.3550803,3818.8,3818.7,0.05711845]
[1717405717362,1.7889912,3818.8,3818.7,0.05711845]
[1717405717532,2.3551385,3818.8,3818.7,0.05711845]
[1717405718958,4.62303623,3818.8,3818.7,0.05711845]
[1717405719121,4.62298764,3818.8,3818.7,0.05711845]
[1717405721237,2.3551385,3818.8,3818.7,0.05711845]
[1717405725335,2.3551385,3818.8,3818.7,1.43200192]
[1717405725540,4.27616369,3818.8,3818.7,1.43200192]
[1717405725864,4.27616369,3818.8,3818.7,0.05711845]
[1717405726018,4.27616369,3818.8,3818.7,0.83811845]
[1717405726219,4.27616369,3818.8,3818.7,0.05711845]
[1717405726457,2.3551385,3818.8,3818.7,0.05711845]
[1717405732701,4.62454452,3818.8,3818.7,0.05711845]
[1717405733762,6.38750887,3818.8,3818.7,0.05711845]
[1717405733988,6.38750887,3818.8,3818.4,0.0802162]
[1717405734298,4.42701927,3819.0,3818.4,0.0802162]
[1717405734299,6.38750887,3818.7,3818.4,0.0802162]
[1717405734496,4.11810285,3818.6,3818.4,0.0802162]
[1717405734700,4.11810285,3818.5,3818.4,0.0802162]
[1717405736113,4.11810285,3818.5,3818.4,2.4544162]
[1717405736915,6.04077748,3818.5,3818.4,3.2354162]
[1717405737471,6.04077748,3818.5,3818.4,2.4544162]
[1717405737719,4.11810285,3818.5,3818.4,0.0802162]
[1717405739176,6.38750887,3818.5,3818.4,0.0802162]
[1717405741103,4.11810285,3818.5,3818.4,0.0802162]
[1717405741580,4.11810285,3818.5,3818.4,3.17820757]
[1717405741917,4.11810285,3818.5,3818.4,3.75792333]
[1717405742095,4.11804539,3818.5,3818.4,2.39720757]
[1717405742295,4.11804539,3818.5,3818.4,3.17820757]
[1717405742916,4.11804539,3818.5,3818.4,2.39720757]
[1717405743116,4.11804539,3818.5,3818.4,3.17820757]
[1717405744154,6.04067924,3818.5,3818.4,3.17820757]
[1717405744354,6.04067924,3818.5,3818.4,3.75792333]
[1717405745251,4.11804539,3818.5,3818.4,3.75792333]
[1717405746607,4.11799039,3818.5,3818.4,3.75792333]
[1717405746911,5.68976412,3818.5,3818.4,3.75792333]
[1717405747657,4.11799039,3818.5,3818.4,3.75792333]
[1717405747863,4.11800893,3818.5,3818.4,3.75792333]
[1717405748569,4.11800893,3818.5,3818.4,2.39720757]
[1717405748725,6.04038763,3818.5,3818.4,0.12270757]
[1717405749122,4.11800893,3818.5,3818.4,0.12270757]
[1717405752813,2.6191,3818.2,3818.0,25.0]
[1717405753019,6.7075282,3818.1,3818.0,25.0]
[1717405753383,7.2575282,3818.1,3818.0,22.57200756]
[1717405753786,6.4765282,3818.1,3818.0,22.57200756]
[1717405754184,7.43458201,3818.1,3818.0,22.57200756]
[1717405754616,4.71356385,3818.1,3818.0,22.57200756]
[1717405755182,9.17882339,3818.1,3818.0,22.57200756]
[1717405755383,4.64928596,3818.1,3818.0,22.57200756]
[1717405755619,9.17882339,3818.1,3818.0,22.57200756]
[1717405756087,7.37030412,3818.1,3818.0,22.57200756]
[1717405756979,4.64928596,3818.1,3818.0,22.57200756]
[1717405759645,4.09928596,3818.1,3818.0,22.57200756]
[1717405759954,4.09928596,3818.1,3818.0,23.97140061]
[1717405760148,3.53323258,3818.1,3818.0,26.59057061]
[1717405760447,3.53323258,3818.1,3818.0,28.98720952]
[1717405760751,3.11397171,3818.1,3818.0,28.98720952]
[1717405761250,1.74424138,3818.1,3818.0,28.98720952]
[1717405761608,3.1141069,3818.1,3818.0,28.98720952]
[1717405762123,3.11405287,3818.1,3818.0,28.98720952]
[1717405763121,3.11392415,3818.1,3818.0,28.98720952]
[1717405763965,3.09186175,3818.1,3818.0,28.98720952]
[1717405766569,1.09576382,3818.2,3818.1,3.4611809]
[1717405766770,3.52276708,3818.7,3818.1,3.4611809]
[1717405766771,1.64361933,3818.5,3818.2,2.61898]
[1717405767063,1.64361933,3818.5,3818.4,2.61889]
[1717405767265,3.5227498,3818.5,3818.4,2.61889]
[1717405767470,3.5227498,3818.5,3818.4,2.65332488]
[1717405767764,1.87913047,3818.5,3818.4,2.65332488]
[1717405768274,1.64361933,3818.7,3818.4,2.65332488]
[1717405768569,1.64361933,3818.7,3818.6,2.61876]
[1717405768720,1.57100981,3819.0,3818.6,2.65310263]
[1717405768925,1.64324568,3818.8,3818.6,2.65310263]
[1717405769162,3.52220401,3818.7,3818.6,2.65310263]
[1717405769525,1.87895833,3818.7,3818.6,2.65310263]
[1717405769726,2.44502809,3818.7,3818.6,2.65310263]
[1717405770171,4.01590194,3818.7,3818.6,2.65310263]
[1717405770667,4.01579622,3818.7,3818.6,2.65310263]
[1717405771368,4.36218799,3818.7,3818.6,2.65310263]
[1717405777707,4.36218799,3818.7,3818.6,3.43410263]
[1717405778192,2.44506803,3818.7,3818.6,3.43410263]
[1717405778395,4.01574549,3818.7,3818.6,3.43410263]
[1717405779681,4.01574549,3818.7,3818.6,2.65310263]
[1717405781121,2.44506803,3818.7,3818.6,2.65310263]
[1717405781276,4.36203079,3818.7,3818.6,2.65310263]
[1717405782229,2.44506803,3818.7,3818.6,2.65310263]
[1717405782581,6.13452915,3818.7,3818.6,2.65310263]
[1717405783718,6.13452915,3818.7,3818.6,0.03434263]
[1717405785025,6.13452915,3818.7,3818.6,0.03452136]
[1717405785181,4.21756639,3818.7,3818.6,0.03452136]
[1717405785601,6.13452915,3818.7,3818.6,0.03452136]
[1717405786417,4.21756639,3818.7,3818.6,0.03452136]
[1717405787631,4.21754477,3818.7,3818.6,0.03452136]
[1717405796877,4.21754477,3818.7,3818.2,3.39996]
[1717405796878,6.13472935,3818.7,3818.2,3.39996]
[1717405797169,0.56611244,3818.6,3818.2,3.39996]
[1717405797467,1.64329853,3818.3,3818.2,4.62723888]
[1717405797671,6.05051337,3818.3,3818.2,4.62723888]
[1717405800349,6.05051337,3818.3,3818.2,2.00827888]
[1717405800804,6.05051337,3818.3,3818.1,2.64560763]
[1717405800805,4.40721484,3818.3,3818.0,24.93360756]
[1717405801010,5.48503147,3818.2,3818.0,24.93360756]
[1717405801160,1.91718458,3818.4,3818.1,0.781]
[1717405801355,4.40864048,3818.3,3818.1,0.781]
[1717405801553,4.40863582,3818.2,3818.0,24.93360756]
[1717405801752,2.61896,3818.3,3818.0,22.57200756]
[1717405801959,1.6815,3818.1,3818.0,22.57200756]
[1717405802205,5.52402032,3818.1,3818.0,20.62976853]
[1717405802497,6.09018338,3818.1,3818.0,20.66241059]
[1717405802695,4.26961529,3818.1,3818.0,20.66241059]
[1717405803253,4.48445223,3818.1,3818.0,18.23443878]
[1717405803402,6.85926316,3818.1,3818.0,18.23443878]
[1717405803604,9.84198132,3818.1,3818.0,18.23443878]
[1717405803814,7.12096316,3818.1,3818.0,18.23443878]
[1717405804582,5.31244389,3818.1,3818.0,18.23443878]
[1717405804784,7.12096316,3818.1,3818.0,18.23443878]
[1717405805408,8.0309512,3818.1,3818.0,18.23443878]
[1717405805591,2.58824389,3818.1,3818.0,18.23443878]
[1717405806209,4.8538496,3818.1,3818.0,18.23443878]
[1717405807390,2.58824389,3818.1,3818.0,18.23443878]
[1717405810181,4.85256905,3818.1,3818.0,18.23443878]
[1717405810420,4.85256905,3818.1,3818.0,18.20179672]
[1717405810928,2.58824389,3818.1,3818.0,18.23482504]
[1717405811125,5.60074389,3818.1,3818.0,15.80679142]
[1717405812498,5.60074389,3818.1,3818.0,15.7737631]
[1717405812915,5.60074389,3818.1,3818.0,15.80578581]
[1717405813492,5.86244389,3818.1,3818.0,15.80578581]
[1717405818435,5.86244389,3818.1,3818.0,13.37761362]
[1717405822063,4.51515223,3818.1,3818.0,13.37761362]
[1717405822266,7.46648459,3818.1,3818.0,13.37761362]
[1717405822769,5.20739918,3818.1,3818.0,13.37761362]
[1717405827267,7.11967411,3818.1,3818.0,13.37761362]
[1717405828173,4.50057411,3818.1,3818.0,13.37761362]
[1717405828546,2.58829918,3818.1,3818.0,13.37761362]
[1717405828873,2.58829918,3818.1,3818.0,14.71537498]
[1717405829031,0.56634695,3818.1,3818.0,14.71537498]
[1717405829230,2.20574252,3818.1,3818.0,14.71537498]
[1717405829446,2.20583984,3818.1,3818.0,14.71537498]
[1717405829642,0.56634695,3818.1,3818.0,14.15861362]
[1717405829872,0.56634695,3818.1,3818.0,16.47001362]
[1717405830033,2.13554755,3818.1,3818.0,16.47001362]
[1717405830237,1.36642066,3818.2,3818.0,16.47001362]
[1717405830437,1.36642066,3818.2,3818.1,1.64700136]
[1717405830746,0.56614313,3818.2,3818.1,1.67785952]
[1717405831279,1.5692006,3818.3,3818.1,1.67785952]
[1717405831452,1.5692006,3818.3,3818.1,1.70481619]
[1717405831647,1.36656964,3818.2,3818.1,1.70481619]
[1717405832235,0.56612477,3818.2,3818.1,1.70481619]
[1717405832434,2.13532537,3818.3,3818.1,1.70481619]
[1717405832630,2.13532537,3818.2,3818.1,0.05781483]
[1717405833661,2.588077,3818.2,3818.1,0.05781483]
[1717405834058,2.02195223,3818.2,3818.1,0.05781483]
[1717405834255,4.50045411,3818.2,3818.1,0.05781483]
[1717405835333,2.58817918,3818.2,3818.1,0.05781483]
[1717405835540,2.84987918,3818.2,3818.1,0.05781483]
[1717405835742,2.6191,3818.1,3818.0,13.3189473]
[1717405835942,5.75727918,3818.1,3818.0,13.3189473]
[1717405836641,6.01897918,3818.1,3818.0,13.3189473]
[1717405837040,7.89797918,3818.1,3818.0,13.3189473]
[1717405837252,10.61648649,3818.1,3818.0,13.3189473]
[1717405837665,10.89797918,3818.1,3818.0,13.3189473]
[1717405839274,13.51707918,3818.1,3818.0,13.3189473]
[1717405840995,16.27007918,3818.1,3818.0,13.3189473]
[1717405842134,16.27007918,3818.1,3818.0,13.0573473]
[1717405842287,16.19959845,3818.1,3818.0,13.0573473]
[1717405842625,14.39107918,3818.1,3818.0,13.11175473]
[1717405842831,14.39107918,3818.1,3818.0,10.68337167]
[1717405843396,16.19959845,3818.1,3818.0,10.68337167]
[1717405843813,14.39107918,3818.1,3818.0,10.68337167]
[1717405844337,16.19959845,3818.1,3818.0,10.68337167]
[1717405844503,14.39107918,3818.1,3818.0,10.68337167]
[1717405844689,16.19959845,3818.1,3818.0,10.68337167]
[1717405844888,17.88109845,3818.1,3818.0,10.68337167]
[1717405845089,17.88109845,3818.1,3818.0,10.42137167]
[1717405846836,19.20323767,3818.1,3818.0,10.42137167]
[1717405847831,21.08223767,3818.1,3818.0,10.42137167]
[1717405847988,19.20323767,3818.1,3818.0,10.42137167]
[1717405848185,21.08223767,3818.1,3818.0,10.15937167]
[1717405849993,23.70133767,3818.1,3818.0,7.73083031]
[1717405850185,23.70133767,3818.1,3818.0,3.1e-07]
[1717405850609,2.88121,3817.5,3817.4,0.1269093]
[1717405850842,3.99743695,3817.5,3817.4,0.1269093]
[1717405851437,5.70731899,3817.5,3817.4,0.1269093]
[1717405851606,7.35017133,3817.5,3817.4,0.1269093]
[1717405852231,5.09028929,3817.5,3817.4,0.1269093]
[1717405852848,5.64028929,3817.5,3817.4,0.1269093]
[1717405853451,4.82858929,3817.5,3817.4,0.1269093]
[1717405854044,4.82872467,3817.5,3817.4,0.1269093]
[1717405855246,4.26236234,3817.5,3817.4,0.1269093]
[1717405855443,4.828698,3817.5,3817.4,2.5494093]
[1717405857752,6.74216955,3817.5,3817.4,2.5494093]
[1717405858758,4.828698,3817.5,3817.4,2.5494093]
[1717405861456,2.209188,3817.5,3817.4,2.80435023]
[1717405861655,3.77774589,3817.5,3817.4,2.80435023]
[1717405861962,0.56633566,3817.5,3817.4,2.85359093]
[1717405862157,4.85173949,3817.5,3817.4,2.80435023]
[1717405862468,3.20888715,3817.6,3817.4,2.85359093]
[1717405862638,4.85173949,3817.8,3817.6,2.297]
[1717405862961,3.20888715,3817.9,3817.7,3.45136042]
[1717405863156,1.64032926,3817.9,3817.8,0.783]
[1717405863344,1.36713471,3817.9,3817.8,3.1058]
[1717405863531,1.36713471,3817.9,3817.8,3.15454326]
[1717405863736,1.36713471,3817.9,3817.8,3.7944971]
[1717405863950,1.36713471,3817.9,3817.8,3.0114971]
[1717405864637,3.20911954,3818.2,3817.8,3.0114971]
[1717405864638,3.20911954,3818.1,3817.8,3.0114971]
[1717405864836,3.20911954,3818.1,3817.8,0.6886971]
[1717405865025,3.20911954,3818.1,3817.9,2.4177]
[1717405865220,1.36669846,3818.0,3817.9,2.4177]
[1717405865446,3.20911954,3818.3,3817.9,2.4177]
[1717405865761,3.77528947,3818.2,3817.9,2.4177]
[1717405865963,3.20911954,3818.2,3817.9,2.4177]
[1717405866461,1.64056165,3818.2,3817.9,2.4177]
[1717405866639,1.64056165,3818.1,3817.9,2.4177]
[1717405867274,1.63915031,3818.1,3817.9,2.921407]
[1717405867647,1.63915031,3818.2,3817.9,2.921407]
[1717405867848,1.63915031,3818.3,3817.9,2.921407]
[1717405868348,1.63915031,3818.2,3817.9,2.4177]
[1717405868550,1.63909754,3818.2,3817.9,2.4177]
[1717405870599,1.63909754,3818.1,3817.9,2.4177]
[1717405873757,1.63909754,3818.0,3817.9,2.4177]
[1717405874180,1.63909754,3818.1,3817.9,2.4177]
[1717405877182,1.36533874,3818.0,3817.9,2.921394]
[1717405877761,1.36533874,3818.1,3818.0,2.61917]
[1717405878095,1.36533874,3818.1,3818.0,4.94997]
[1717405878384,1.36533874,3818.2,3818.0,3.1645364]
[1717405878576,1.36533874,3818.2,3818.0,2.61917]
[1717405878774,1.36533874,3818.2,3818.1,2.4572]
[1717405879386,1.63909754,3818.5,3818.1,2.4572]
[1717405879593,4.25792754,3818.5,3818.1,2.4572]
[1717405879802,1.63909754,3818.2,3817.8,2.3214]
[1717405880293,1.36525933,3818.0,3817.8,2.3214]
[1717405880599,3.28194988,3818.3,3817.8,2.3214]
[1717405880600,1.36517605,3817.9,3817.8,2.3214]
[1717405881399,1.36517605,3818.0,3817.8,2.815481]
[1717405881550,1.36517605,3818.0,3817.8,4.94065]
[1717405881751,1.09193572,3817.9,3817.8,4.94065]
[1717405883793,1.09193572,3818.0,3817.8,2.61925]
[1717405884093,1.09193572,3818.0,3817.9,3.2592]
[1717405885997,1.09193572,3818.0,3817.9,2.4762]
[1717405886192,1.36517605,3818.1,3817.9,2.4762]
[1717405887316,1.36517605,3818.0,3817.9,2.4762]
[1717405888792,1.36517605,3818.1,3817.9,2.4762]
[1717405889155,2.93286974,3818.1,3817.9,2.4762]
[1717405890376,2.13384947,3818.0,3817.9,2.4762]
[1717405890579,1.56769369,3818.0,3817.9,2.4762]
[1717405890807,2.13384947,3818.0,3817.9,2.4762]
[1717405891110,1.56769369,3818.0,3817.9,2.4762]
[1717405891626,0.56615578,3818.0,3817.9,2.4762]
[1717405891831,0.56615578,3818.0,3817.4,2.7464393]
[1717405892099,1.09138534,3817.7,3817.6,0.783]
[1717405892262,3.49740589,3817.7,3817.6,0.783]
[1717405892462,3.49740589,3817.7,3817.5,2.33078207]
[1717405892698,2.93125011,3817.7,3817.6,0.04703521]
[1717405893007,3.49745607,3817.7,3817.6,0.04703521]
[1717405893162,0.56620596,3817.7,3817.6,0.04703521]
[1717405893599,1.93043764,3817.7,3817.6,0.04703521]
[1717405893821,3.49745607,3817.7,3817.6,0.04703521]
[1717405894169,2.13322439,3817.7,3817.6,0.04703521]
[1717405895646,2.13308292,3817.7,3817.6,0.04703521]
[1717405897702,3.77593526,3817.7,3817.6,0.04703521]
[1717405898241,5.41408731,3817.7,3817.6,0.04703521]
[1717405898451,3.84720944,3817.7,3817.6,0.04703521]
[1717405898676,3.84720944,3817.7,3817.4,0.1269093]
[1717405898960,1.63885921,3817.5,3817.4,0.1269093]
[1717405899238,4.00792524,3817.5,3817.4,0.1269093]
[1717405899405,2.36906603,3817.5,3817.4,0.1269093]
[1717405899918,2.36906603,3817.5,3817.4,0.17268407]
[1717405900521,1.80282956,3817.5,3817.4,0.17268407]
[1717405900838,3.93528747,3817.5,3817.4,0.17268407]
[1717405901141,3.93541335,3817.5,3817.4,0.17268407]